[Event "Early-Titled-Tuesday-Blitz-July-09-2024"]
[Site "Chess.com"]
[Date "2024.07.09"]
[Round "5"]
[White "FREDERICKtheMATE"]
[Black "Jakhongir-Vakhidov"]
[Result "0-1"]
[WhiteElo "2741"]
[BlackElo "3019"]
[TimeControl "180+1"]
[EndTime "8:58:42 PDT"]
[Termination "Jakhongir-Vakhidov won on time"]

1. Nf3 {[%clk 0:03:00.9]} 1... g6 {[%clk 0:03:00.1]} 2. d4 {[%clk 0:02:58.8]}
2... Nf6 {[%clk 0:03:00.2]} 3. c4 {[%clk 0:02:58.2]} 3... Bg7 {[%clk 0:03:00.6]}
4. Nc3 {[%clk 0:02:58.3]} 4... d5 {[%clk 0:03:01.2]} 5. Qb3 {[%clk 0:02:57.9]}
5... dxc4 {[%clk 0:03:00.4]} 6. Qxc4 {[%clk 0:02:58.6]} 6... Be6 {[%clk
0:03:01]} 7. Qa4+ {[%clk 0:02:57.5]} 7... Bd7 {[%clk 0:03:01]} 8. Qa3 {[%clk
0:02:56.9]} 8... O-O {[%clk 0:02:51.5]} 9. e4 {[%clk 0:02:55.2]} 9... Bg4 {[%clk
0:02:48.1]} 10. Be3 {[%clk 0:02:50.6]} 10... Nc6 {[%clk 0:02:43.7]} 11. O-O-O
{[%clk 0:02:34]} 11... Qd6 {[%clk 0:02:37]} 12. Qxd6 {[%clk 0:02:20.3]} 12...
cxd6 {[%clk 0:02:33.6]} 13. Be2 {[%clk 0:02:14.5]} 13... Rfc8 {[%clk 0:02:32.6]}
14. Kb1 {[%clk 0:02:09.3]} 14... Nd7 {[%clk 0:02:32.6]} 15. Nd2 {[%clk
0:02:00.4]} 15... Bxe2 {[%clk 0:02:26]} 16. Nxe2 {[%clk 0:02:01.3]} 16... d5
{[%clk 0:02:12]} 17. e5 {[%clk 0:01:53.5]} 17... e6 {[%clk 0:02:11.8]} 18. Rc1
{[%clk 0:01:46.6]} 18... f6 {[%clk 0:02:12]} 19. f4 {[%clk 0:01:45.8]} 19... Bh6
{[%clk 0:02:12.4]} 20. Rc3 {[%clk 0:01:34.4]} 20... Rf8 {[%clk 0:02:00.7]} 21.
Nf3 {[%clk 0:01:26.8]} 21... Nb6 {[%clk 0:01:43.8]} 22. b3 {[%clk 0:01:26.2]}
22... Nd7 {[%clk 0:01:37.2]} 23. h4 {[%clk 0:01:10.1]} 23... fxe5 {[%clk
0:01:24.5]} 24. fxe5 {[%clk 0:01:07.5]} 24... Bxe3 {[%clk 0:01:25.4]} 25. Rxe3
{[%clk 0:01:07.6]} 25... h6 {[%clk 0:01:26]} 26. Rc1 {[%clk 0:01:00.3]} 26...
Rf7 {[%clk 0:01:25.7]} 27. Kb2 {[%clk 0:00:42.5]} 27... Raf8 {[%clk 0:01:25.3]}
28. a3 {[%clk 0:00:39.7]} 28... Kg7 {[%clk 0:01:23.5]} 29. Rc2 {[%clk
0:00:39.3]} 29... Rf5 {[%clk 0:01:21.4]} 30. Rd2 {[%clk 0:00:27.4]} 30... Nb6
{[%clk 0:01:21]} 31. Rdd3 {[%clk 0:00:23.7]} 31... a5 {[%clk 0:01:20.9]} 32. a4
{[%clk 0:00:21.6]} 32... R5f7 {[%clk 0:01:15.4]} 33. Rc3 {[%clk 0:00:20]} 33...
Nc8 {[%clk 0:01:15.5]} 34. Rc5 {[%clk 0:00:14]} 34... N8e7 {[%clk 0:01:14.8]}
35. Rcc3 {[%clk 0:00:12.9]} 35... Nf5 {[%clk 0:01:12.2]} 36. Red3 {[%clk
0:00:13.2]} 36... Nfe7 {[%clk 0:01:11.1]} 37. Re3 {[%clk 0:00:12.9]} 37... Nb4
{[%clk 0:01:10.1]} 38. Rc7 {[%clk 0:00:11.4]} 38... Nec6 {[%clk 0:01:00.7]} 39.
Rxf7+ {[%clk 0:00:10.7]} 39... Rxf7 {[%clk 0:01:01.6]} 40. Rc3 {[%clk 0:00:10]}
40... Rf5 {[%clk 0:00:58.2]} 41. Rc5 {[%clk 0:00:08.4]} 41... Nd3+ {[%clk
0:00:57.6]} 42. Kc3 {[%clk 0:00:08.3]} 42... Nxc5 {[%clk 0:00:58.5]} 43. dxc5
{[%clk 0:00:09.1]} 43... Nxe5 {[%clk 0:00:52.3]} 44. Ned4 {[%clk 0:00:07.9]}
44... Nxf3 {[%clk 0:00:52.5]} 45. Nxf5+ {[%clk 0:00:07.3]} 45... exf5 {[%clk
0:00:41.9]} 46. gxf3 {[%clk 0:00:08.2]} 46... g5 {[%clk 0:00:42.5]} 47. hxg5
{[%clk 0:00:05.2]} 47... hxg5 {[%clk 0:00:20.3]} 48. b4 {[%clk 0:00:04.9]} 48...
axb4+ {[%clk 0:00:19.1]} 49. Kxb4 {[%clk 0:00:05.8]} 49... g4 {[%clk 0:00:17.9]}
50. fxg4 {[%clk 0:00:04.3]} 50... fxg4 {[%clk 0:00:18.7]} 51. a5 {[%clk
0:00:04.2]} 51... g3 {[%clk 0:00:17.6]} 0-1

[Event "Early-Titled-Tuesday-Blitz-July-09-2024"]
[Site "Chess.com"]
[Date "2024.07.09"]
[Round "5"]
[White "2KTNGO"]
[Black "IMVadim"]
[Result "1/2-1/2"]
[WhiteElo "2594"]
[BlackElo "2443"]
[TimeControl "180+1"]
[EndTime "8:58:43 PDT"]
[Termination "Game drawn by repetition"]

1. d4 {[%clk 0:03:00.9]} 1... Nf6 {[%clk 0:02:58.7]} 2. Nf3 {[%clk 0:02:52.7]}
2... g6 {[%clk 0:02:57.3]} 3. c4 {[%clk 0:02:38.5]} 3... Bg7 {[%clk 0:02:56.2]}
4. Nc3 {[%clk 0:02:36.5]} 4... d5 {[%clk 0:02:53.5]} 5. Qb3 {[%clk 0:02:35.2]}
5... dxc4 {[%clk 0:02:46.2]} 6. Qxc4 {[%clk 0:02:30.3]} 6... O-O {[%clk
0:02:46.3]} 7. e4 {[%clk 0:02:29.6]} 7... Nc6 {[%clk 0:02:45.8]} 8. Be3 {[%clk
0:02:25.7]} 8... Ng4 {[%clk 0:02:40.8]} 9. Rd1 {[%clk 0:01:59.8]} 9... Nxe3
{[%clk 0:02:13.3]} 10. fxe3 {[%clk 0:01:59.1]} 10... Bg4 {[%clk 0:02:08.2]} 11.
e5 {[%clk 0:01:57.2]} 11... e6 {[%clk 0:02:05]} 12. a3 {[%clk 0:01:46.9]} 12...
Bxf3 {[%clk 0:02:02.4]} 13. gxf3 {[%clk 0:01:45.9]} 13... Qh4+ {[%clk
0:02:02.9]} 14. Kd2 {[%clk 0:01:43.4]} 14... Rfd8 {[%clk 0:01:57.3]} 15. Kc2
{[%clk 0:01:38.2]} 15... Qf2+ {[%clk 0:01:48.9]} 16. Qe2 {[%clk 0:01:37]} 16...
Qxe2+ {[%clk 0:01:40.1]} 17. Bxe2 {[%clk 0:01:34.8]} 17... Ne7 {[%clk
0:01:39.2]} 18. Bd3 {[%clk 0:01:25.4]} 18... Rac8 {[%clk 0:01:38.7]} 19. Be4
{[%clk 0:01:22.2]} 19... b6 {[%clk 0:01:30.8]} 20. f4 {[%clk 0:01:19.4]} 20...
Nf5 {[%clk 0:01:19.4]} 21. Bxf5 {[%clk 0:01:14.1]} 21... gxf5 {[%clk 0:01:16]}
22. Rhg1 {[%clk 0:01:03.9]} 22... c5 {[%clk 0:00:58.8]} 23. d5 {[%clk
0:00:55.3]} 23... exd5 {[%clk 0:00:53.4]} 24. Nxd5 {[%clk 0:00:51.2]} 24... Kf8
{[%clk 0:00:53.7]} 25. a4 {[%clk 0:00:42.1]} 25... Rd7 {[%clk 0:00:49.6]} 26.
Nc3 {[%clk 0:00:32]} 26... Rcd8 {[%clk 0:00:48]} 27. Rxd7 {[%clk 0:00:30.1]}
27... Rxd7 {[%clk 0:00:48.9]} 28. Rg5 {[%clk 0:00:28]} 28... h6 {[%clk
0:00:41.5]} 29. Rxf5 {[%clk 0:00:27.4]} 29... Ke7 {[%clk 0:00:42.1]} 30. Rh5
{[%clk 0:00:24.9]} 30... a6 {[%clk 0:00:35.1]} 31. Rh3 {[%clk 0:00:20.2]} 31...
f6 {[%clk 0:00:35]} 32. Rg3 {[%clk 0:00:20]} 32... Kf7 {[%clk 0:00:34.2]} 33.
exf6 {[%clk 0:00:18.7]} 33... Bxf6 {[%clk 0:00:35.1]} 34. Ne4 {[%clk 0:00:18.2]}
34... Bg7 {[%clk 0:00:35.4]} 35. f5 {[%clk 0:00:17.2]} 35... Be5 {[%clk
0:00:31]} 36. Rg6 {[%clk 0:00:16.9]} 36... Bxh2 {[%clk 0:00:31.2]} 37. Rxh6
{[%clk 0:00:16.9]} 37... Be5 {[%clk 0:00:30.4]} 38. Rh7+ {[%clk 0:00:16.6]}
38... Ke8 {[%clk 0:00:31]} 39. Rxd7 {[%clk 0:00:16.4]} 39... Kxd7 {[%clk
0:00:31.9]} 40. Kd3 {[%clk 0:00:16.7]} 40... Bxb2 {[%clk 0:00:29.9]} 41. Kc4
{[%clk 0:00:17]} 41... Be5 {[%clk 0:00:29.4]} 42. Kd5 {[%clk 0:00:16.9]} 42...
Bh8 {[%clk 0:00:28.9]} 43. a5 {[%clk 0:00:16.2]} 43... bxa5 {[%clk 0:00:28.8]}
44. Nxc5+ {[%clk 0:00:16.5]} 44... Ke7 {[%clk 0:00:29.4]} 45. Nxa6 {[%clk
0:00:16.6]} 45... Bb2 {[%clk 0:00:26.1]} 46. Nc5 {[%clk 0:00:15.6]} 46... Kf6
{[%clk 0:00:23.5]} 47. e4 {[%clk 0:00:15.6]} 47... Ba1 {[%clk 0:00:19.3]} 48.
Na4 {[%clk 0:00:15.6]} 48... Be5 {[%clk 0:00:18.7]} 49. Nb6 {[%clk 0:00:15.6]}
49... Bb2 {[%clk 0:00:18.1]} 50. Nd7+ {[%clk 0:00:15.7]} 50... Ke7 {[%clk
0:00:17.9]} 51. Nc5 {[%clk 0:00:15.9]} 51... Kf6 {[%clk 0:00:18]} 52. Nd7+
{[%clk 0:00:15.3]} 52... Ke7 {[%clk 0:00:17.4]} 53. Nc5 {[%clk 0:00:15.1]} 53...
Kf6 {[%clk 0:00:17.8]} 54. Nd3 {[%clk 0:00:15.2]} 54... Ba1 {[%clk 0:00:16.8]}
55. Nc5 {[%clk 0:00:12.9]} 55... Bb2 {[%clk 0:00:15.7]} 1/2-1/2

[Event "Early-Titled-Tuesday-Blitz-July-09-2024"]
[Site "Chess.com"]
[Date "2024.07.09"]
[Round "5"]
[White "nitpicker"]
[Black "Cherepov_Alexej"]
[Result "0-1"]
[WhiteElo "2298"]
[BlackElo "2439"]
[TimeControl "180+1"]
[EndTime "8:58:44 PDT"]
[Termination "Cherepov_Alexej won by resignation"]

1. d4 {[%clk 0:03:00.9]} 1... d5 {[%clk 0:02:58.7]} 2. c4 {[%clk 0:03:00.6]}
2... dxc4 {[%clk 0:02:57.1]} 3. e4 {[%clk 0:02:59.8]} 3... c5 {[%clk 0:02:55.8]}
4. Nf3 {[%clk 0:02:52.2]} 4... cxd4 {[%clk 0:02:52.5]} 5. Qxd4 {[%clk 0:02:52]}
5... Qxd4 {[%clk 0:02:49]} 6. Nxd4 {[%clk 0:02:52.9]} 6... a6 {[%clk 0:02:48.9]}
7. Bxc4 {[%clk 0:02:51.5]} 7... e5 {[%clk 0:02:47.9]} 8. Nf3 {[%clk 0:02:49]}
8... Nc6 {[%clk 0:02:47.4]} 9. O-O {[%clk 0:02:34.8]} 9... Nf6 {[%clk
0:02:44.9]} 10. Ng5 {[%clk 0:02:14.6]} 10... Nd8 {[%clk 0:02:32.4]} 11. Rd1
{[%clk 0:02:11]} 11... Be7 {[%clk 0:02:31.4]} 12. Nc3 {[%clk 0:02:00.4]} 12...
h6 {[%clk 0:02:30.1]} 13. Nf3 {[%clk 0:02:00.6]} 13... Nc6 {[%clk 0:02:24.2]}
14. h3 {[%clk 0:01:58.6]} 14... Be6 {[%clk 0:02:20.6]} 15. Bxe6 {[%clk
0:01:52.1]} 15... fxe6 {[%clk 0:02:21.5]} 16. b3 {[%clk 0:01:48.9]} 16... Bb4
{[%clk 0:02:07.8]} 17. Bb2 {[%clk 0:01:45.6]} 17... Ke7 {[%clk 0:02:04.6]} 18.
Na4 {[%clk 0:01:41.9]} 18... Nxe4 {[%clk 0:01:55.6]} 19. Nxe5 {[%clk 0:01:38.9]}
19... Nxe5 {[%clk 0:01:41.8]} 20. Bxe5 {[%clk 0:01:39.8]} 20... Nf6 {[%clk
0:01:41.9]} 21. Nb6 {[%clk 0:01:32.1]} 21... Rad8 {[%clk 0:01:39]} 22. Bc7
{[%clk 0:01:24.8]} 22... Rxd1+ {[%clk 0:01:33.6]} 23. Rxd1 {[%clk 0:01:25.7]}
23... Bc5 {[%clk 0:01:31.4]} 24. Nc4 {[%clk 0:01:20.2]} 24... Ne4 {[%clk
0:01:24.9]} 25. Bb6 {[%clk 0:01:11.8]} 25... Rc8 {[%clk 0:01:04.1]} 26. Bxc5+
{[%clk 0:01:07.7]} 26... Rxc5 {[%clk 0:01:04.2]} 27. f3 {[%clk 0:00:59.4]} 27...
Nc3 {[%clk 0:01:03.5]} 28. Rd2 {[%clk 0:00:57]} 28... b5 {[%clk 0:01:02.5]} 29.
Rc2 {[%clk 0:00:44.6]} 29... Nd5 {[%clk 0:00:39.1]} 30. Ne3 {[%clk 0:00:44]}
30... Rxc2 {[%clk 0:00:38.2]} 31. Nxc2 {[%clk 0:00:44.7]} 31... Nc3 {[%clk
0:00:38.4]} 32. Nb4 {[%clk 0:00:42.2]} 32... Kd6 {[%clk 0:00:34.4]} 33. a3
{[%clk 0:00:34]} 33... a5 {[%clk 0:00:33.8]} 34. Nd3 {[%clk 0:00:32.7]} 34...
Kd5 {[%clk 0:00:31.6]} 35. Kf2 {[%clk 0:00:28.9]} 35... Kd4 {[%clk 0:00:31.6]}
36. Nf4 {[%clk 0:00:27.1]} 36... e5 {[%clk 0:00:30.1]} 37. Ne6+ {[%clk
0:00:26.4]} 37... Kd5 {[%clk 0:00:29.5]} 38. Nxg7 {[%clk 0:00:26.3]} 38... Nb1
{[%clk 0:00:29.5]} 39. a4 {[%clk 0:00:25.5]} 39... bxa4 {[%clk 0:00:28.9]} 40.
bxa4 {[%clk 0:00:26.2]} 40... Nc3 {[%clk 0:00:29]} 41. Nf5 {[%clk 0:00:24.8]}
41... Nxa4 {[%clk 0:00:29]} 42. Nxh6 {[%clk 0:00:25]} 42... Nc3 {[%clk 0:00:28]}
43. Ke3 {[%clk 0:00:21.1]} 43... a4 {[%clk 0:00:27.3]} 44. Kd3 {[%clk
0:00:21.3]} 44... Nd1 {[%clk 0:00:24.4]} 45. Kc2 {[%clk 0:00:14.1]} 45... Ne3+
{[%clk 0:00:23.6]} 46. Kc3 {[%clk 0:00:14.4]} 46... Nxg2 {[%clk 0:00:21.7]} 47.
Kb4 {[%clk 0:00:15]} 47... Nf4 {[%clk 0:00:20.8]} 48. h4 {[%clk 0:00:12]} 48...
Ng6 {[%clk 0:00:20.3]} 49. Nf5 {[%clk 0:00:09.5]} 49... Ke6 {[%clk 0:00:19.5]}
50. Ng7+ {[%clk 0:00:09.7]} 50... Kf6 {[%clk 0:00:19.6]} 51. Nf5 {[%clk
0:00:10.2]} 51... Kxf5 {[%clk 0:00:19.5]} 52. h5 {[%clk 0:00:10.3]} 52... Nh4
{[%clk 0:00:18.4]} 53. Kxa4 {[%clk 0:00:11.2]} 53... Nxf3 {[%clk 0:00:18.1]} 54.
Kb4 {[%clk 0:00:11.4]} 54... Kg5 {[%clk 0:00:18.4]} 55. Kc3 {[%clk 0:00:11.9]}
55... Kxh5 {[%clk 0:00:18.5]} 56. Kd3 {[%clk 0:00:12.4]} 56... Kg4 {[%clk
0:00:16.5]} 57. Ke4 {[%clk 0:00:13]} 57... Kg3 {[%clk 0:00:16.6]} 58. Ke3 {[%clk
0:00:12.5]} 58... Ng5 {[%clk 0:00:14.6]} 59. Kd3 {[%clk 0:00:12]} 59... Kf3
{[%clk 0:00:14.7]} 60. Kd2 {[%clk 0:00:11.3]} 60... e4 {[%clk 0:00:15]} 0-1

[Event "Early-Titled-Tuesday-Blitz-July-09-2024"]
[Site "Chess.com"]
[Date "2024.07.09"]
[Round "5"]
[White "sathvikadiga"]
[Black "Chaubunagungamaug1"]
[Result "1-0"]
[WhiteElo "2671"]
[BlackElo "2487"]
[TimeControl "180+1"]
[EndTime "8:58:48 PDT"]
[Termination "sathvikadiga won by resignation"]

1. e4 {[%clk 0:03:00.9]} 1... c5 {[%clk 0:03:00]} 2. Nf3 {[%clk 0:03:00.2]} 2...
e6 {[%clk 0:03:00.3]} 3. g3 {[%clk 0:02:59.2]} 3... Nc6 {[%clk 0:02:58.3]} 4.
Bg2 {[%clk 0:02:58.4]} 4... d5 {[%clk 0:02:58.5]} 5. exd5 {[%clk 0:02:57.9]}
5... exd5 {[%clk 0:02:59.4]} 6. d4 {[%clk 0:02:58.6]} 6... Bg4 {[%clk
0:02:54.8]} 7. O-O {[%clk 0:02:58.3]} 7... cxd4 {[%clk 0:02:45.7]} 8. Nbd2
{[%clk 0:02:55.7]} 8... Nf6 {[%clk 0:02:38.7]} 9. h3 {[%clk 0:02:55.2]} 9... Bh5
{[%clk 0:02:38]} 10. Nb3 {[%clk 0:02:53.4]} 10... Be7 {[%clk 0:02:37.5]} 11. g4
{[%clk 0:02:52.9]} 11... Bg6 {[%clk 0:02:37.2]} 12. Nbxd4 {[%clk 0:02:53]} 12...
O-O {[%clk 0:02:37.1]} 13. c3 {[%clk 0:02:51.3]} 13... Rc8 {[%clk 0:02:34.5]}
14. Bf4 {[%clk 0:02:46.1]} 14... Ne4 {[%clk 0:02:15.4]} 15. Qe2 {[%clk
0:02:30.3]} 15... Bd6 {[%clk 0:02:07]} 16. Bxd6 {[%clk 0:02:03.5]} 16... Qxd6
{[%clk 0:02:07.9]} 17. Rfe1 {[%clk 0:02:02.4]} 17... Rfe8 {[%clk 0:02:03.9]} 18.
Qb5 {[%clk 0:01:40.5]} 18... Re7 {[%clk 0:01:30.9]} 19. Re3 {[%clk 0:01:30.1]}
19... Qf4 {[%clk 0:01:21.1]} 20. Qe2 {[%clk 0:01:22.6]} 20... Nxd4 {[%clk
0:00:55.5]} 21. Nxd4 {[%clk 0:01:23.5]} 21... Rd7 {[%clk 0:00:50.6]} 22. Re1
{[%clk 0:01:17.1]} 22... h6 {[%clk 0:00:46.5]} 23. Rf3 {[%clk 0:00:53.8]} 23...
Qd6 {[%clk 0:00:37.1]} 24. Nf5 {[%clk 0:00:53.3]} 24... Qb6 {[%clk 0:00:29.6]}
25. Rf4 {[%clk 0:00:30.9]} 25... Bxf5 {[%clk 0:00:28.4]} 26. gxf5 {[%clk
0:00:25.4]} 26... Nf6 {[%clk 0:00:28.8]} 27. Rb4 {[%clk 0:00:22.7]} 27... Qc5
{[%clk 0:00:24.3]} 28. Qe3 {[%clk 0:00:18.3]} 28... d4 {[%clk 0:00:18.9]} 29.
Rxd4 {[%clk 0:00:15.6]} 29... Qxf5 {[%clk 0:00:16.3]} 30. Rxd7 {[%clk
0:00:13.4]} 30... Nxd7 {[%clk 0:00:15.2]} 31. Bxb7 {[%clk 0:00:10]} 31... Rb8
{[%clk 0:00:08.6]} 32. Be4 {[%clk 0:00:10.1]} 32... Qe6 {[%clk 0:00:06.4]} 33.
b3 {[%clk 0:00:09.4]} 33... Ne5 {[%clk 0:00:06.1]} 34. Bg2 {[%clk 0:00:08]}
34... Re8 {[%clk 0:00:05.1]} 35. c4 {[%clk 0:00:06.6]} 35... g6 {[%clk
0:00:04.4]} 36. Kf1 {[%clk 0:00:06.6]} 36... Qf5 {[%clk 0:00:02.9]} 37. f4
{[%clk 0:00:05.1]} 37... Re6 {[%clk 0:00:03.2]} 38. Kg1 {[%clk 0:00:02.5]} 38...
Nc6 {[%clk 0:00:02.8]} 39. Be4 {[%clk 0:00:02.7]} 39... Qf6 {[%clk 0:00:02.8]}
40. Qf3 {[%clk 0:00:02.6]} 40... Nd4 {[%clk 0:00:03]} 41. Qf2 {[%clk 0:00:02.8]}
41... Kg7 {[%clk 0:00:02.3]} 42. Bg2 {[%clk 0:00:03.4]} 42... Nf5 {[%clk
0:00:02.5]} 43. Rxe6 {[%clk 0:00:03.3]} 43... Qxe6 {[%clk 0:00:03.4]} 44. c5
{[%clk 0:00:04]} 44... Qf6 {[%clk 0:00:03.6]} 45. c6 {[%clk 0:00:04.4]} 45...
Qa1+ {[%clk 0:00:04]} 46. Kh2 {[%clk 0:00:04.9]} 46... Qc3 {[%clk 0:00:04.5]}
47. Qf3 {[%clk 0:00:03.2]} 47... Qc2 {[%clk 0:00:04.5]} 48. Qd5 {[%clk
0:00:02.8]} 48... Ne3 {[%clk 0:00:04.3]} 49. Qe4 {[%clk 0:00:03.4]} 49... Nf5
{[%clk 0:00:04.2]} 50. Qxc2 {[%clk 0:00:03.2]} 1-0

[Event "Early-Titled-Tuesday-Blitz-July-09-2024"]
[Site "Chess.com"]
[Date "2024.07.09"]
[Round "5"]
[White "ilovejokes555"]
[Black "subham777"]
[Result "1-0"]
[WhiteElo "2345"]
[BlackElo "2538"]
[TimeControl "180+1"]
[EndTime "8:58:51 PDT"]
[Termination "ilovejokes555 won on time"]

1. e4 {[%clk 0:03:00.9]} 1... e6 {[%clk 0:02:59.2]} 2. d4 {[%clk 0:03:00.3]}
2... d5 {[%clk 0:02:58.4]} 3. Nd2 {[%clk 0:03:00.5]} 3... c5 {[%clk 0:02:58]} 4.
exd5 {[%clk 0:02:58.1]} 4... Qxd5 {[%clk 0:02:57.5]} 5. Ngf3 {[%clk 0:02:58.4]}
5... cxd4 {[%clk 0:02:57.3]} 6. Bc4 {[%clk 0:02:59]} 6... Qd7 {[%clk 0:02:56.2]}
7. O-O {[%clk 0:02:59.4]} 7... Nc6 {[%clk 0:02:56.4]} 8. Nb3 {[%clk 0:02:59.3]}
8... Nf6 {[%clk 0:02:56.8]} 9. Nbxd4 {[%clk 0:02:59.2]} 9... Nxd4 {[%clk
0:02:57.7]} 10. Nxd4 {[%clk 0:02:59.3]} 10... a6 {[%clk 0:02:57]} 11. Bb3 {[%clk
0:02:58.8]} 11... Bc5 {[%clk 0:02:49.4]} 12. c3 {[%clk 0:02:58.3]} 12... O-O
{[%clk 0:02:41.5]} 13. Bg5 {[%clk 0:02:42.8]} 13... Ne4 {[%clk 0:02:33.9]} 14.
Be3 {[%clk 0:02:40.7]} 14... b5 {[%clk 0:02:18.9]} 15. Qe2 {[%clk 0:02:23.2]}
15... Bb7 {[%clk 0:02:10.5]} 16. Rad1 {[%clk 0:02:21.9]} 16... Qe7 {[%clk
0:02:05.7]} 17. Bc2 {[%clk 0:02:15.5]} 17... Rad8 {[%clk 0:01:45.3]} 18. Qg4
{[%clk 0:02:06.8]} 18... f5 {[%clk 0:01:33.1]} 19. Qe2 {[%clk 0:02:02]} 19... f4
{[%clk 0:01:21.9]} 20. Bc1 {[%clk 0:01:48.5]} 20... Bxd4 {[%clk 0:01:06.2]} 21.
Bxe4 {[%clk 0:01:29.2]} 21... f3 {[%clk 0:01:03.1]} 22. Bxf3 {[%clk 0:01:20]}
22... Bxf3 {[%clk 0:01:01.7]} 23. gxf3 {[%clk 0:01:19.8]} 23... Bc5 {[%clk
0:00:54.9]} 24. Rxd8 {[%clk 0:01:18.6]} 24... Rxd8 {[%clk 0:00:53.6]} 25. Re1
{[%clk 0:01:17.7]} 25... h6 {[%clk 0:00:45.6]} 26. Be3 {[%clk 0:01:11.7]} 26...
Bd6 {[%clk 0:00:42.7]} 27. Bd4 {[%clk 0:01:06.5]} 27... Qg5+ {[%clk 0:00:40]}
28. Kh1 {[%clk 0:01:06]} 28... Qf4 {[%clk 0:00:27.1]} 29. Qxe6+ {[%clk
0:00:55.6]} 29... Kh8 {[%clk 0:00:26.4]} 30. Qh3 {[%clk 0:00:34.6]} 30... Rf8
{[%clk 0:00:14.8]} 31. Rg1 {[%clk 0:00:33.9]} 31... Rf7 {[%clk 0:00:11.2]} 32.
Qg3 {[%clk 0:00:29.1]} 32... Qxg3 {[%clk 0:00:06]} 33. hxg3 {[%clk 0:00:27.5]}
33... Rxf3 {[%clk 0:00:06.4]} 34. Kg2 {[%clk 0:00:27.6]} 34... Rd3 {[%clk
0:00:06.3]} 35. Re1 {[%clk 0:00:27.1]} 35... Rd2 {[%clk 0:00:05.6]} 36. Re6
{[%clk 0:00:26]} 36... Bf8 {[%clk 0:00:05]} 37. Re8 {[%clk 0:00:26]} 37... Kg8
{[%clk 0:00:03.3]} 38. Bc5 {[%clk 0:00:25.6]} 38... Rxb2 {[%clk 0:00:03.7]} 39.
Rxf8+ {[%clk 0:00:25.2]} 39... Kh7 {[%clk 0:00:04.3]} 40. a3 {[%clk 0:00:24.8]}
40... Rb3 {[%clk 0:00:03.9]} 41. Bb4 {[%clk 0:00:24.7]} 41... a5 {[%clk
0:00:04.1]} 42. Bxa5 {[%clk 0:00:24.9]} 42... Rxa3 {[%clk 0:00:04.2]} 43. Bb4
{[%clk 0:00:25.1]} 43... Ra6 {[%clk 0:00:02.6]} 44. Rf5 {[%clk 0:00:25]} 44...
Rb6 {[%clk 0:00:02.8]} 45. Rc5 {[%clk 0:00:25.2]} 45... Rb7 {[%clk 0:00:03.1]}
46. Rc6 {[%clk 0:00:25.3]} 46... g6 {[%clk 0:00:03.2]} 47. Kf3 {[%clk
0:00:24.9]} 47... h5 {[%clk 0:00:02.9]} 48. Ke4 {[%clk 0:00:25]} 48... Kh6
{[%clk 0:00:03.3]} 49. f4 {[%clk 0:00:25.2]} 49... Kg7 {[%clk 0:00:01.7]} 50.
Bd6 {[%clk 0:00:24.6]} 50... Kf6 {[%clk 0:00:01.9]} 51. Be5+ {[%clk 0:00:24.7]}
51... Kf7 {[%clk 0:00:01.9]} 52. Rc7+ {[%clk 0:00:24.9]} 52... Rxc7 {[%clk
0:00:01.5]} 53. Bxc7 {[%clk 0:00:25.8]} 53... Ke6 {[%clk 0:00:02.1]} 54. Ba5
{[%clk 0:00:25.6]} 54... Kd6 {[%clk 0:00:02.2]} 55. Bb4+ {[%clk 0:00:25.8]}
55... Ke6 {[%clk 0:00:02.4]} 56. Kf3 {[%clk 0:00:25.6]} 56... Kf5 {[%clk
0:00:02.7]} 57. Bc5 {[%clk 0:00:25.1]} 57... g5 {[%clk 0:00:01.9]} 58. fxg5
{[%clk 0:00:24.7]} 58... Kxg5 {[%clk 0:00:02.8]} 59. Bb4 {[%clk 0:00:24.6]}
59... Kf5 {[%clk 0:00:02.8]} 60. Kg2 {[%clk 0:00:24.6]} 1-0